bitfinex/quotes_BTCUSD_20240729
["timestamp","ask_amount","ask_price","bid_price","bid_amount"]
[1722250523468,0.001,69876.0,69875.0,0.57245]
[1722250523688,0.001,69876.0,69875.0,0.34347]
[1722250524551,0.001,69876.0,69875.0,0.35547]
[1722250524774,0.001,69876.0,69875.0,0.36947]
[1722250525400,0.0013616,69876.0,69875.0,0.026]
[1722250526328,0.0766616,69876.0,69875.0,0.026]
[1722250526544,0.1408616,69876.0,69875.0,0.026]
[1722250527842,0.15503176,69876.0,69875.0,0.026]
[1722250529053,0.21008305,69876.0,69875.0,0.026]
[1722250529251,0.21672428,69876.0,69875.0,0.026]
[1722250529637,0.39561297,69876.0,69875.0,0.026]
[1722250529810,0.21672428,69876.0,69875.0,0.026]
[1722250530151,0.33121228,69876.0,69875.0,0.014]
[1722250530350,0.266957,69876.0,69875.0,0.014]
[1722250530560,0.20255412,69876.0,69875.0,0.014]
[1722250530991,0.1552545,69876.0,69875.0,0.014]
[1722250531184,0.1552545,69876.0,69875.0,0.024]
[1722250531434,0.1408616,69876.0,69875.0,0.024]
[1722250531611,0.15480542,69876.0,69875.0,0.014]
[1722250532022,0.24732774,69876.0,69875.0,0.014]
[1722250532232,0.59611986,69876.0,69875.0,0.022]
[1722250532425,0.58130569,69876.0,69875.0,0.022]
[1722250532871,0.87426917,69876.0,69875.0,0.022]
[1722250533223,0.89573504,69876.0,69875.0,0.022]
[1722250533434,0.89573504,69876.0,69875.0,0.014]
[1722250533636,0.89573444,69876.0,69875.0,0.014]
[1722250533835,0.94573444,69876.0,69875.0,0.019]
[1722250534035,0.94573444,69876.0,69875.0,0.005]
[1722250534036,0.81140569,69876.0,69875.0,0.005]
[1722250534238,0.81187154,69876.0,69875.0,0.005]
[1722250534395,0.81189126,69876.0,69875.0,0.005]
[1722250534828,1.04086826,69876.0,69875.0,0.005]
[1722250535232,1.09086826,69876.0,69875.0,0.005]
[1722250535434,1.19086826,69876.0,69875.0,0.005]
[1722250535635,1.41984526,69876.0,69875.0,0.005]
[1722250536270,1.51984526,69876.0,69875.0,0.005]
[1722250536525,1.56832239,69876.0,69875.0,0.005]
[1722250536747,1.56832239,69876.0,69875.0,0.018]
[1722250536951,1.56832239,69876.0,69853.0,0.000924]
[1722250536952,0.1454616,69854.0,69853.0,0.000924]
[1722250537964,0.2599856,69854.0,69853.0,0.000924]
[1722250538173,0.50406131,69854.0,69853.0,0.000924]
[1722250538532,1.03463067,69854.0,69853.0,0.000924]
[1722250538730,0.85528137,69854.0,69853.0,0.000924]
[1722250539056,0.92581117,69854.0,69853.0,0.000924]
[1722250539232,0.46771317,69854.0,69853.0,0.000924]
[1722250539582,0.51058304,69854.0,69853.0,0.006924]
[1722250539810,0.73963204,69854.0,69853.0,0.006924]
[1722250540013,0.51058304,69854.0,69853.0,0.006924]
[1722250540237,0.64658203,69854.0,69853.0,0.006924]
[1722250540468,0.52605223,69854.0,69853.0,0.006924]
[1722250540667,0.52594485,69854.0,69853.0,0.006924]
[1722250541074,0.5259455,69854.0,69853.0,0.006924]
[1722250541284,0.2968965,69854.0,69853.0,0.006924]
[1722250541663,0.33587158,69854.0,69853.0,0.006924]
[1722250542061,0.56492058,69854.0,69853.0,0.006924]
[1722250542628,0.84396958,69854.0,69853.0,0.006924]
[1722250542790,0.56492058,69854.0,69853.0,0.006924]
[1722250543170,0.54244922,69854.0,69853.0,0.006924]
[1722250543562,0.57800968,69854.0,69853.0,0.006924]
[1722250543757,0.54195264,69854.0,69853.0,0.006924]
[1722250544013,0.59195264,69854.0,69853.0,0.008924]
[1722250544757,0.59194271,69854.0,69853.0,0.008924]
[1722250546583,0.61441463,69854.0,69853.0,0.008924]
[1722250546870,0.82091326,69854.0,69853.0,0.008924]
[1722250547295,0.54186426,69854.0,69853.0,0.008924]
[1722250548124,0.4890346,69854.0,69853.0,0.008924]
[1722250549701,0.50306339,69854.0,69853.0,0.008924]
[1722250549928,0.52553527,69854.0,69853.0,0.008924]
[1722250550395,0.50306492,69854.0,69853.0,0.008924]
[1722250550603,0.4890346,69854.0,69853.0,0.008924]
[1722250550964,0.57584276,69854.0,69853.0,0.008924]
[1722250551967,0.57584276,69854.0,69853.0,0.018924]
[1722250552682,0.87789176,69854.0,69853.0,0.018924]
[1722250553595,0.9144803,69854.0,69853.0,0.018924]
[1722250554402,0.6354313,69854.0,69853.0,0.018924]
[1722250554799,0.61295888,69854.0,69853.0,0.018924]
[1722250555003,0.84200788,69854.0,69853.0,0.018924]
[1722250556621,0.82789176,69854.0,69853.0,0.018924]
[1722250556797,0.84267981,69854.0,69853.0,0.018924]
[1722250558405,0.84271628,69854.0,69853.0,0.018924]
[1722250559596,0.9148539,69854.0,69853.0,0.018924]
[1722250559791,0.84271628,69854.0,69853.0,0.018924]
[1722250560004,0.84279555,69854.0,69853.0,0.018924]
[1722250560538,0.8775609,69854.0,69853.0,0.018924]
[1722250560751,0.89236938,69854.0,69853.0,0.018924]
[1722250562320,0.89233198,69854.0,69853.0,0.018924]
[1722250562549,0.91480396,69854.0,69853.0,0.018924]
[1722250562748,0.19387945,69854.0,69853.0,0.018924]
[1722250563007,0.03861031,69854.0,69853.0,0.018924]
[1722250563235,0.01613833,69854.0,69853.0,0.018924]
[1722250563991,0.01613833,69854.0,69853.0,0.016924]
[1722250564372,0.01613833,69854.0,69853.0,0.019924]
[1722250565401,0.01669649,69854.0,69853.0,0.019924]
[1722250565757,0.01681903,69854.0,69853.0,0.019924]
[1722250566160,0.03928903,69854.0,69853.0,0.019924]
[1722250567443,0.01681903,69854.0,69853.0,0.019924]
[1722250567739,0.01681903,69854.0,69853.0,0.013924]
[1722250568032,0.01681903,69854.0,69853.0,0.010924]
[1722250568393,0.01781903,69854.0,69853.0,0.013924]
[1722250568595,0.05198556,69854.0,69853.0,0.013924]
[1722250568817,0.06730284,69854.0,69853.0,0.013924]
[1722250569331,0.06830284,69854.0,69853.0,0.019924]
[1722250569964,0.06830284,69854.0,69853.0,0.096724]
[1722250570124,0.0033616,69854.0,69853.0,0.158524]
[1722250570504,0.003,69854.0,69853.0,0.158524]
[1722250570703,0.02446887,69854.0,69853.0,0.158524]
[1722250570903,0.02446887,69854.0,69853.0,0.27305]
[1722250571120,0.02346887,69854.0,69853.0,0.27005]
[1722250571764,0.001,69854.0,69853.0,0.155524]
[1722250571934,0.0023616,69854.0,69853.0,0.155524]
[1722250572808,0.0023616,69854.0,69853.0,0.163524]
[1722250572809,0.0033616,69854.0,69853.0,0.163524]
[1722250573011,0.0033616,69854.0,69853.0,0.27805]
[1722250573213,0.001,69854.0,69853.0,0.27005]
[1722250573444,0.001,69856.0,69853.0,0.316776]
[1722250573642,0.0013616,69858.0,69856.0,0.11452]
[1722250573948,0.0013616,69858.0,69855.0,0.113522]
[1722250574404,0.0013616,69858.0,69854.0,0.114524]
[1722250574814,0.0013616,69856.0,69853.0,0.094724]
[1722250575474,0.001,69854.0,69853.0,0.108724]
[1722250576373,0.001,69854.0,69853.0,0.101724]
[1722250576573,0.0023616,69854.0,69853.0,0.101724]
[1722250578053,0.02482899,69854.0,69853.0,0.101724]
[1722250578683,0.0023616,69854.0,69853.0,0.101724]
[1722250579280,0.0023616,69854.0,69853.0,0.115724]
[1722250579889,0.0023616,69854.0,69853.0,0.101724]
[1722250580101,0.001,69854.0,69853.0,0.28095]
[1722250580436,0.0033616,69854.0,69853.0,0.180424]
[1722250581263,0.0023616,69854.0,69853.0,0.166424]
[1722250581466,0.0023616,69854.0,69853.0,0.176424]
[1722250582002,0.02482912,69854.0,69853.0,0.166424]
[1722250582504,0.02582912,69854.0,69853.0,0.176424]
[1722250584391,0.02546752,69854.0,69853.0,0.176424]
[1722250584593,0.02582912,69854.0,69853.0,0.176424]
[1722250584807,0.002,69854.0,69853.0,0.176424]
[1722250585154,0.002,69854.0,69853.0,0.29095]
[1722250585706,0.003,69854.0,69853.0,0.176424]
[1722250585966,0.0033616,69854.0,69853.0,0.176424]
[1722250587375,0.0033616,69854.0,69853.0,0.29095]
[1722250587572,0.003,69854.0,69853.0,0.29095]
[1722250588353,0.003,69854.0,69853.0,0.176424]
[1722250588354,0.0033616,69854.0,69853.0,0.176424]
[1722250588766,0.02582919,69854.0,69853.0,0.176424]
[1722250590260,0.02582919,69854.0,69853.0,0.099624]
[1722250591331,0.0033616,69854.0,69853.0,0.099624]
[1722250592140,0.0033616,69854.0,69853.0,0.21415]
[1722250592558,0.0033616,69854.0,69853.0,0.29645]
[1722250592737,0.002,69854.0,69853.0,0.754554]
[1722250592943,0.002,69854.0,69853.0,1.60439579]
[1722250593094,0.001,69866.0,69865.0,0.572519]
[1722250593312,0.001,69866.0,69865.0,0.801532]
[1722250593532,0.001,69866.0,69865.0,0.572519]
[1722250594543,0.0244632,69866.0,69865.0,0.581519]
[1722250594917,0.0248248,69866.0,69865.0,0.581519]
[1722250595265,0.0244632,69866.0,69865.0,0.498719]
[1722250595615,0.0023616,69866.0,69865.0,0.498719]
[1722250595799,0.001,69866.0,69865.0,0.489719]
[1722250596644,0.0003616,69869.0,69868.0,0.343504]
[1722250596645,0.001,69869.0,69868.0,0.343504]
[1722250596964,0.0013616,69869.0,69868.0,0.114501]
[1722250597576,0.00084,69878.0,69869.0,0.114499]
[1722250597577,0.0013616,69870.0,69869.0,0.114499]
[1722250597764,0.0003616,69870.0,69869.0,0.114499]
[1722250597959,0.0013616,69871.0,69870.0,0.343494]
[1722250598567,0.0013616,69871.0,69870.0,0.406894]
[1722250598978,0.02382457,69871.0,69870.0,0.406894]
[1722250599577,0.02246297,69871.0,69870.0,0.63589]
[1722250599826,0.02382457,69871.0,69870.0,0.63589]
[1722250600032,0.02246297,69871.0,69870.0,0.63589]
[1722250600203,0.0013616,69873.0,69872.0,0.114495]
[1722250600406,0.0013616,69873.0,69872.0,0.343485]
[1722250600608,0.0013616,69873.0,69872.0,0.114495]
[1722250601526,0.0013616,69873.0,69872.0,0.343485]
[1722250601730,0.0013616,69873.0,69872.0,0.355485]
[1722250601977,0.0013616,69873.0,69872.0,0.126495]
[1722250602522,0.0013616,69873.0,69872.0,0.140495]
[1722250603448,0.02382431,69873.0,69872.0,0.140495]
[1722250603848,0.0013616,69873.0,69872.0,0.140495]
[1722250604047,0.0013616,69873.0,69872.0,0.026]
[1722250604451,0.1469616,69873.0,69872.0,0.026]
[1722250606042,0.1469616,69873.0,69872.0,0.03656158]
[1722250607056,0.16942531,69873.0,69872.0,0.026]
[1722250607944,0.34906127,69873.0,69872.0,0.026]
[1722250608216,0.39814111,69873.0,69872.0,0.026]
[1722250608359,0.0013616,69860.0,69859.0,0.057378]
[1722250608583,0.1478616,69860.0,69859.0,0.06804043]
[1722250608986,0.1478616,69860.0,69859.0,0.057378]
[1722250609594,0.16521795,69860.0,69859.0,0.057378]
[1722250609795,0.0013616,69859.0,69848.0,0.7843]
[1722250610049,0.0827616,69859.0,69848.0,0.7843]
[1722250610196,0.0996421,69859.0,69848.0,0.7843]
[1722250610398,0.0996421,69859.0,69856.0,0.01068048]
[1722250610722,0.09964328,69859.0,69849.0,0.115456]
[1722250610922,0.09964328,69859.0,69852.0,0.0641]
[1722250611180,0.0827616,69859.0,69855.0,0.01084606]
[1722250611397,0.09983168,69859.0,69855.0,0.01084606]
[1722250611564,0.1222992,69859.0,69855.0,0.01084606]
[1722250611768,0.1710221,69859.0,69858.0,0.475]
[1722250611974,0.1710221,69859.0,69858.0,0.007]
[1722250612151,0.1222992,69859.0,69858.0,0.007]
[1722250612552,0.09983168,69859.0,69858.0,0.007]
[1722250612956,0.10083168,69859.0,69858.0,0.018]
[1722250613360,0.10072507,69859.0,69858.0,0.018]
[1722250614185,0.0837616,69859.0,69858.0,0.018]
[1722250615766,0.10622936,69859.0,69858.0,0.018]
[1722250615966,0.02482936,69859.0,69858.0,0.018]
[1722250616192,0.0023616,69859.0,69858.0,0.018]
[1722250617399,0.0023616,69859.0,69858.0,0.011]
[1722250617603,0.0023616,69859.0,69858.0,0.016]
[1722250618232,0.0023616,69859.0,69858.0,0.011]
[1722250618606,0.0023616,69859.0,69858.0,0.018]
[1722250619012,0.0023616,69859.0,69858.0,0.011]
[1722250619213,0.0013616,69856.0,69855.0,0.000924]
[1722250619412,0.0013616,69856.0,69855.0,0.115446]
[1722250620426,0.001,69859.0,69855.0,0.115446]
[1722250620427,0.0013616,69858.0,69855.0,0.000924]
[1722250620641,0.0013616,69857.0,69856.0,0.11452]
[1722250620814,0.0013616,69858.0,69857.0,0.114519]
[1722250621014,0.0755,69863.0,69859.0,0.114516]
[1722250621015,0.001,69862.0,69859.0,0.114516]
[1722250621296,0.001,69862.0,69858.0,0.229035]
[1722250621297,0.0013616,69862.0,69861.0,0.114513]
[1722250622167,0.0013616,69862.0,69861.0,0.343539]
[1722250622799,0.0013616,69862.0,69861.0,0.114513]
[1722250623353,0.0013616,69862.0,69861.0,0.343539]
[1722250623771,0.001,69861.0,69860.0,0.114514]
[1722250623991,0.0013616,69861.0,69860.0,0.114514]
[1722250624418,0.076,69868.0,69858.0,0.343552]
[1722250624419,0.0013616,69859.0,69858.0,0.343552]
[1722250624741,0.001,69859.0,69858.0,0.343552]
[1722250624959,0.0013616,69859.0,69858.0,0.114517]
[1722250625108,0.0013616,69858.0,69857.0,0.0603]
[1722250625271,0.0013616,69858.0,69857.0,0.174819]
[1722250625474,0.0013616,69858.0,69857.0,0.403858]
[1722250626514,0.0013616,69858.0,69857.0,0.632897]
[1722250626813,0.0013616,69858.0,69857.0,0.403858]
[1722250627237,0.02382802,69858.0,69857.0,0.417858]
[1722250627655,0.0013616,69858.0,69857.0,0.417858]
[1722250630850,0.0238279,69858.0,69857.0,0.417858]
[1722250631964,0.0013616,69858.0,69857.0,0.417858]
[1722250633619,0.001,69858.0,69857.0,0.417858]
[1722250633829,0.0013616,69858.0,69857.0,0.431858]
[1722250634445,0.001,69858.0,69857.0,0.431858]
[1722250635225,0.0234663,69858.0,69857.0,0.431858]
[1722250635721,0.0238279,69858.0,69857.0,0.431858]
[1722250636463,0.0013616,69858.0,69857.0,0.371558]
[1722250636680,0.0844616,69858.0,69857.0,0.371558]
[1722250637817,0.0844616,69858.0,69857.0,0.142519]
[1722250638024,0.0844616,69858.0,69857.0,0.028]
[1722250639475,0.17650513,69858.0,69857.0,0.028]
[1722250639675,0.16149897,69858.0,69857.0,0.028]
[1722250639893,0.18396697,69858.0,69857.0,0.028]
[1722250640115,0.18525818,69858.0,69857.0,0.028]
[1722250640288,0.2340137,69858.0,69857.0,0.028]
[1722250640492,0.23272249,69858.0,69857.0,0.028]
[1722250640726,0.23417751,69858.0,69857.0,0.028]
[1722250640962,0.21025449,69858.0,69857.0,0.028]
[1722250641140,0.21178527,69858.0,69857.0,0.028]
[1722250641949,0.21025449,69858.0,69857.0,0.028]
[1722250642152,0.21039709,69858.0,69857.0,0.028]
[1722250642553,0.19341712,69858.0,69857.0,0.028]
[1722250642753,0.2103972,69858.0,69857.0,0.028]
[1722250643158,0.21122775,69858.0,69857.0,0.028]
[1722250643333,0.2103972,69858.0,69857.0,0.028]
[1722250643932,0.23286515,69858.0,69857.0,0.028]
[1722250644316,0.2103972,69858.0,69857.0,0.028]
[1722250644694,0.21037853,69858.0,69857.0,0.028]
[1722250645298,0.19341712,69858.0,69857.0,0.028]
[1722250645626,0.20986401,69858.0,69857.0,0.028]
[1722250647497,0.232332,69858.0,69857.0,0.028]
[1722250648976,0.23205576,69858.0,69857.0,0.028]
[1722250651893,0.21588511,69858.0,69857.0,0.028]
[1722250652094,0.23203321,69858.0,69857.0,0.028]
[1722250652502,0.2320272,69858.0,69857.0,0.028]
[1722250653219,0.27499202,69858.0,69857.0,0.028]
[1722250654181,0.25252403,69858.0,69857.0,0.028]
[1722250654718,0.25253271,69858.0,69857.0,0.028]
[1722250655060,0.23639062,69858.0,69857.0,0.028]
[1722250655284,0.25208484,69858.0,69857.0,0.028]
[1722250656980,0.50816236,69858.0,69857.0,0.028]
[1722250657322,0.4437021,69858.0,69857.0,0.028]
[1722250657521,1.2808101,69858.0,69857.0,0.028]
[1722250657781,1.5328461,69858.0,69857.0,0.028]
[1722250658188,1.71129869,69858.0,69857.0,0.028]
[1722250658389,1.48230802,69858.0,69857.0,0.028]
[1722250658693,1.30382057,69858.0,69857.0,0.014]
[1722250658887,1.30382057,69858.0,69857.0,0.02]
[1722250659188,1.35777092,69858.0,69857.0,0.02]
[1722250659344,1.30382057,69858.0,69857.0,0.02]
[1722250659777,1.30382057,69858.0,69855.0,0.000924]
[1722250659778,0.9030086,69856.0,69855.0,0.000924]
[1722250659934,1.35679837,69856.0,69855.0,0.000924]
[1722250660961,1.35779837,69856.0,69855.0,0.000924]
[1722250661642,1.38495399,69856.0,69855.0,0.000924]
[1722250661996,1.38495399,69856.0,69855.0,0.002924]
[1722250662740,1.36248266,69856.0,69855.0,0.002924]
[1722250662942,1.64152466,69856.0,69855.0,0.002924]
[1722250663173,1.79551526,69856.0,69855.0,0.002924]
[1722250664325,1.57600759,69856.0,69855.0,0.002924]
[1722250664673,1.5760043,69856.0,69855.0,0.002924]
[1722250665946,1.59847241,69856.0,69855.0,0.002924]
[1722250666292,1.53883406,69856.0,69855.0,0.002924]
[1722250667795,1.51556674,69856.0,69855.0,0.000924]
[1722250668007,1.54075781,69856.0,69855.0,0.000924]
[1722250668651,1.76979981,69856.0,69855.0,0.000924]
[1722250668962,1.82634968,69856.0,69855.0,0.000924]
[1722250669216,1.82834968,69856.0,69855.0,0.001924]
[1722250669388,1.83134968,69856.0,69855.0,0.001924]
[1722250671147,1.83040169,69856.0,69855.0,0.001924]
[1722250671659,1.83040168,69856.0,69855.0,0.001924]
[1722250672461,1.80792862,69856.0,69855.0,0.001924]
[1722250673868,1.80734643,69856.0,69855.0,0.001924]
[1722250675705,1.82981981,69856.0,69855.0,0.001924]
[1722250677202,1.80734643,69856.0,69855.0,0.001924]
[1722250677597,1.44148476,69856.0,69855.0,0.001924]
[1722250680279,1.46395767,69856.0,69855.0,0.001924]
[1722250680798,1.46360548,69856.0,69855.0,0.001924]
[1722250681368,1.46363594,69856.0,69855.0,0.001924]
[1722250681757,1.40577848,69856.0,69855.0,0.001924]
[1722250681952,1.51286954,69856.0,69855.0,0.001924]
[1722250682153,1.40577848,69856.0,69855.0,0.001924]
[1722250682400,1.51286954,69856.0,69855.0,0.001924]
[1722250682791,1.65596893,69856.0,69855.0,0.001924]
[1722250683265,1.71335221,69856.0,69855.0,0.001924]
[1722250684496,1.60625704,69856.0,69855.0,0.001924]
[1722250684672,1.71337527,69856.0,69855.0,0.001924]
[1722250685091,1.71325387,69856.0,69855.0,0.001924]
[1722250685501,1.71325123,69856.0,69855.0,0.001924]
[1722250685718,1.606133,69856.0,69855.0,0.001924]
[1722250685916,1.71326311,69856.0,69855.0,0.001924]
[1722250686121,1.606133,69856.0,69855.0,0.001924]
[1722250686505,1.60602771,69856.0,69855.0,0.001924]
[1722250687133,1.5835548,69856.0,69855.0,0.001924]
[1722250689920,1.58355479,69856.0,69855.0,0.001924]
[1722250690663,1.60602759,69856.0,69855.0,0.001924]
[1722250690919,1.58355479,69856.0,69855.0,0.001924]
[1722250691435,1.69072659,69856.0,69855.0,0.001924]
[1722250691688,1.48355479,69856.0,69855.0,0.001924]
[1722250692451,1.59072659,69856.0,69855.0,0.001924]
[1722250692703,1.69072659,69856.0,69855.0,0.001924]
[1722250693197,1.59007158,69856.0,69855.0,0.001924]
[1722250693454,1.69007158,69856.0,69855.0,0.001924]
[1722250693685,1.69008736,69856.0,69855.0,0.001924]
[1722250693903,1.48351772,69856.0,69855.0,0.001924]
[1722250694830,1.30071772,69856.0,69855.0,0.001924]
[1722250695040,1.48351772,69856.0,69855.0,0.001924]
[1722250695188,1.38351772,69856.0,69855.0,0.001924]
[1722250695387,1.37663661,69856.0,69855.0,0.001924]
[1722250695792,1.37663724,69856.0,69855.0,0.001924]
[1722250696390,1.37669141,69856.0,69855.0,0.001924]
[1722250697014,1.29389141,69856.0,69855.0,0.001924]
[1722250697220,1.37669141,69856.0,69855.0,0.001924]
[1722250697437,1.27669141,69856.0,69855.0,0.001924]
[1722250697758,1.37669141,69856.0,69855.0,0.001924]
[1722250697960,0.79125002,69856.0,69855.0,0.001924]
[1722250698109,0.70825002,69856.0,69855.0,0.001924]
[1722250698530,0.47920802,69856.0,69855.0,0.001924]
[1722250699135,0.70825002,69856.0,69855.0,0.001924]
[1722250699324,0.93729202,69856.0,69855.0,0.001924]
[1722250699492,0.76435994,69856.0,69855.0,0.001924]
[1722250699882,0.84559199,69856.0,69855.0,0.001924]
[1722250702469,1.12463399,69856.0,69855.0,0.001924]
[1722250702897,1.04340194,69856.0,69855.0,0.001924]
[1722250703215,1.12462226,69856.0,69855.0,0.001924]
[1722250703444,1.06729285,69856.0,69855.0,0.001924]
[1722250703650,1.25316298,69856.0,69855.0,0.001924]
[1722250706043,1.43534394,69856.0,69855.0,0.001924]
[1722250706268,1.72041311,69856.0,69855.0,0.001924]
[1722250706699,1.71541311,69856.0,69855.0,0.000924]
[1722250706899,1.72241311,69856.0,69855.0,0.001924]
[1722250707144,1.72641311,69856.0,69855.0,0.001924]
[1722250707341,1.71941311,69856.0,69855.0,0.000924]
[1722250707752,1.59041932,69856.0,69855.0,0.000924]
[1722250709351,1.58641932,69856.0,69855.0,0.000924]
[1722250709479,1.58693542,69856.0,69855.0,0.000924]
[1722250709679,1.59093542,69856.0,69855.0,0.000924]
[1722250710687,1.59793542,69856.0,69855.0,0.001924]
[1722250712900,1.5978681,69856.0,69855.0,0.001924]
[1722250713294,1.59784111,69856.0,69855.0,0.001924]
[1722250715241,1.57536875,69856.0,69855.0,0.001924]
[1722250715904,1.5765167,69856.0,69855.0,0.001924]
[1722250716664,1.8055587,69856.0,69855.0,0.001924]
[1722250716856,1.9565587,69856.0,69855.0,0.001924]
[1722250717024,2.10169363,69856.0,69855.0,0.001924]
[1722250717244,1.9565587,69856.0,69855.0,0.001924]
[1722250717660,1.9565587,69856.0,69855.0,0.000924]
[1722250717830,1.9495587,69856.0,69855.0,0.000924]
[1722250718041,1.9565587,69856.0,69855.0,0.001924]
[1722250718661,0.3677616,69854.0,69853.0,0.010924]
[1722250718847,0.3677616,69854.0,69831.0,0.0622]
[1722250718848,0.1159216,69832.0,69831.0,0.0622]
[1722250719025,0.4278426,69832.0,69831.0,0.0622]
[1722250719201,0.5003348,69832.0,69831.0,0.0622]
[1722250719787,0.52281198,69832.0,69831.0,0.0622]
[1722250720253,0.52281198,69832.0,69830.0,0.00012]
[1722250720254,0.5741716,69831.0,69830.0,0.00012]
[1722250720425,0.50351996,69831.0,69830.0,0.00012]
[1722250720568,0.52651996,69831.0,69830.0,0.00012]
[1722250721201,0.75564396,69831.0,69830.0,0.00012]
[1722250721407,0.75564396,69831.0,69830.0,0.00612]
[1722250721408,0.6706638,69831.0,69830.0,0.00612]
[1722250722342,0.44210365,69831.0,69830.0,0.00612]
[1722250722705,0.51979498,69831.0,69830.0,0.00612]
[1722250722907,0.54409551,69831.0,69830.0,0.00612]
[1722250723127,0.56657336,69831.0,69830.0,0.00612]
[1722250723527,0.56757336,69831.0,69830.0,0.01712]
[1722250723910,0.4655815,69831.0,69830.0,0.01712]
[1722250724133,0.44310365,69831.0,69830.0,0.01712]
[1722250724411,0.50755265,69831.0,69830.0,0.01712]
[1722250724956,0.50755105,69831.0,69830.0,0.01712]
[1722250725382,0.41880312,69831.0,69830.0,0.01712]
[1722250725583,0.84775133,69831.0,69830.0,0.01712]
[1722250725905,0.97621163,69831.0,69830.0,0.01712]
[1722250727180,0.99869045,69831.0,69830.0,0.01712]
[1722250727754,0.88760784,69831.0,69830.0,0.01712]
[1722250728206,0.77210784,69831.0,69830.0,0.01712]
[1722250728785,0.88705572,69831.0,69830.0,0.01712]
[1722250728990,0.77870795,69831.0,69830.0,0.01112]
[1722250729191,0.77870795,69831.0,69830.0,0.01212]
[1722250729389,1.00077487,69831.0,69830.0,0.01212]
[1722250730277,0.99977487,69831.0,69830.0,0.00112]
[1722250730665,1.04977487,69831.0,69830.0,0.00112]
[1722250730808,1.04977487,69831.0,69830.0,0.00512]
[1722250731227,0.9424431,69831.0,69830.0,0.00512]
[1722250731634,0.9555431,69831.0,69830.0,0.00512]
[1722250732033,0.95404219,69831.0,69830.0,0.00512]
[1722250732228,1.00404219,69831.0,69830.0,0.00512]
[1722250732460,1.30276509,69831.0,69830.0,0.00512]
[1722250732658,1.39672728,69831.0,69830.0,0.00512]
[1722250732891,1.49672728,69831.0,69830.0,0.00512]
[1722250733097,1.85460196,69831.0,69830.0,0.00512]
[1722250733298,1.49672728,69831.0,69830.0,0.00412]
[1722250733667,1.73985128,69831.0,69830.0,0.00512]
[1722250733867,1.73985128,69831.0,69830.0,0.00112]
[1722250734251,1.52072728,69831.0,69830.0,0.00212]
[1722250734487,1.52072728,69831.0,69830.0,0.00112]
[1722250734488,1.51072728,69831.0,69830.0,0.00112]
[1722250734938,1.50672728,69831.0,69830.0,0.00112]
[1722250735185,1.50691224,69831.0,69830.0,0.00112]
[1722250735388,1.73603624,69831.0,69830.0,0.00112]
[1722250735515,1.71355742,69831.0,69830.0,0.00112]
[1722250735716,1.48443342,69831.0,69830.0,0.00112]
[1722250735918,1.71355742,69831.0,69830.0,0.00112]
[1722250736527,1.72755742,69831.0,69830.0,0.00212]
[1722250737132,1.71355742,69831.0,69830.0,0.00112]
[1722250737429,1.72755742,69831.0,69830.0,0.00212]
[1722250738035,0.9935456,69818.0,69817.0,0.008866]
[1722250738208,1.19415055,69818.0,69817.0,0.008866]
[1722250738413,1.12869511,69818.0,69817.0,0.008866]
[1722250738616,1.17869511,69818.0,69817.0,0.008866]
[1722250738839,1.26443029,69818.0,69817.0,0.008866]
[1722250739030,1.28691358,69818.0,69817.0,0.008866]
[1722250739236,1.2011784,69818.0,69817.0,0.008866]
[1722250740206,1.1511784,69818.0,69817.0,0.008866]
[1722250740407,0.7819114,69818.0,69817.0,0.008866]
[1722250740586,0.84918548,69818.0,69817.0,0.008866]
[1722250740786,0.53721848,69818.0,69817.0,0.008866]
[1722250741064,0.50215041,69818.0,69817.0,0.008866]
[1722250741243,0.53303893,69818.0,69817.0,0.008866]
[1722250741785,0.53271537,69818.0,69817.0,0.008866]
[1722250742360,0.76188237,69818.0,69817.0,0.008866]
[1722250743903,0.73631741,69818.0,69817.0,0.009866]
[1722250744102,0.76697844,69818.0,69817.0,0.009866]
[1722250744643,0.53781144,69818.0,69817.0,0.009866]
[1722250744850,0.30864444,69818.0,69817.0,0.009866]
[1722250746252,0.53781144,69818.0,69817.0,0.009866]
[1722250746664,0.76697844,69818.0,69817.0,0.009866]
[1722250747072,0.79883583,69818.0,69817.0,0.009866]
[1722250747727,0.74426904,69818.0,69817.0,0.009866]
[1722250748671,0.88706904,69818.0,69817.0,0.009866]
[1722250749558,1.25201276,69818.0,69817.0,0.009866]
[1722250750289,1.25488891,69818.0,69817.0,0.009866]
[1722250750476,1.28666802,69818.0,69817.0,0.009866]
[1722250750800,1.25097345,69818.0,69817.0,0.009866]
[1722250750997,1.52375539,69818.0,69817.0,0.009866]
[1722250751123,1.43806835,69818.0,69817.0,0.009866]
[1722250751474,1.54517715,69818.0,69817.0,0.009866]
[1722250752036,1.43806835,69818.0,69817.0,0.009866]
[1722250752273,1.37346933,69818.0,69817.0,0.009866]
[1722250752515,1.48057813,69818.0,69817.0,0.009866]
[1722250752720,1.37346933,69818.0,69817.0,0.009866]
[1722250752892,1.37370229,69818.0,69817.0,0.009866]
[1722250753256,1.48083137,69818.0,69817.0,0.009866]
[1722250753456,1.42438434,69818.0,69817.0,0.009866]
[1722250753834,1.62393062,69818.0,69817.0,0.009866]
[1722250753973,1.51680154,69818.0,69817.0,0.009866]
[1722250755595,1.51700287,69818.0,69817.0,0.009866]
[1722250755797,1.46700287,69818.0,69817.0,0.009866]
[1722250756174,1.51700287,69818.0,69817.0,0.009866]
[1722250756577,1.46700287,69818.0,69817.0,0.009866]
[1722250757060,1.46685941,69818.0,69817.0,0.009866]
[1722250758043,1.51685941,69818.0,69817.0,0.009866]
[1722250758422,1.37376002,69818.0,69817.0,0.009866]
[1722250758746,1.13096002,69818.0,69817.0,0.009866]
[1722250759167,0.87614531,69818.0,69817.0,0.009866]
[1722250759295,0.95894531,69818.0,69817.0,0.009866]
[1722250759491,1.08096002,69818.0,69817.0,0.009866]
[1722250759745,1.49489742,69818.0,69817.0,0.009866]
[1722250759979,1.49489742,69818.0,69798.0,0.01011707]